[Event "Rodostosah WGM 2019"]
[Site "Tekirdag"]
[Date "2019.02.10"]
[Round "1.6"]
[White "Caglar, Sila"]
[Black "Shkuran, Danylo"]
[Result "1/2-1/2"]
[ECO "B85"]
[WhiteElo "2062"]
[BlackElo "2368"]
[Annotator "NA"]
[PlyCount "81"]
[EventDate "2019.02.08"]
[EventType "schev"]
[EventCountry "TUR"]
[SourceTitle "playchess.com"]
[Source "ChessBase"]
[SourceQuality "1"]
[TimeControl "5400+30"]

1. e4 {[%emt 0:00:30]} c5 {[%emt 0:00:30]} 2. Nf3 {[%emt 0:00:30]} e6 {[%emt 0:00:30]} 3. d4 {[%emt 0:00:30]} cxd4 {[%emt 0:00:30]} 4. Nxd4 {[%emt 0:00:00]} Nc6 {[%emt 0:00:00]} 5. Nc3 {[%emt 0:00:00]} Qc7 {[%emt 0:00:00]} 6. Be2 {[%emt 0:00:30]} a6 {[%emt 0:00:30]} 7. Be3 {[%emt 0:00:30]} Nf6 {[%emt 0:01:30]} 8. O-O {[%emt 0:01:30]} Be7 {[%emt 0:07:30]} 9. f4 {[%emt 0:05:30]} d6 {[%emt 0:01:30]} 10. Kh1 {[%emt 0:00:30]} O-O {[%emt 0:00:30]} 11. Qe1 {[%emt 0:00:30]} Bd7 {[%emt 0:02:30]} 12. Qg3 {[%emt 0:03:30]} Kh8 {[%emt 0:04:30]} 13. Rad1 {[%emt 0:06:30]} b5 {[%emt 0:02:30]} 14. a3 {[%emt 0:00:30]} Rac8 {[%emt 0:07:30]} 15. Bf3 {[%emt 0:12:30]} Na5 {[%emt 0:07:30]} 16. e5 {[%emt 0:06:30]} Ne8 {[%emt 0:10:30]} 17. Nf5 {[%emt 0:18:30]} exf5 {[%emt 0:23:30]} 18. Nd5 {[%emt 0:00:30]} Qb8 {[%emt 0:00:00]} 19. Nxe7 {[%emt 0:00:30]} Rxc2 {[%emt 0:00:00]} 20. Bd4 {[%emt 0:02:30]} Nc4 {[%emt 0:01:30]} 21. Bd5 {[%emt 0:11:30]} Be6 {[%emt 0:24:41]} 22. Qd3 {[%emt 0:04:30]} Rxb2 {[%emt 0:02:47]} 23. Bxe6 {[%emt 0:02:30]} fxe6 {[%emt 0:00:15]} 24. Qh3 {[%emt 0:01:30]} Rf7 {[%emt 0:00:21]} 25. exd6 {[%emt 0:00:47]} Rd2 {[%emt 0:00:51]} 26. Ng6+ {[%emt 0:09:43]} Kg8 {[%emt 0:00:30]} 27. Ne7+ {[%emt 0:00:00]} Kh8 {[%emt 0:00:00]} 28. Ng6+ {[%emt 0:01:11]} Kg8 {[%emt 0:00:03]} 29. Ne7+ {[%emt 0:01:29]} Rxe7 {[%emt 0:00:30]} 30. dxe7 {[%emt 0:00:04]} Qd6 {[%emt 0:00:07]} 31. Qc3 {[%emt 0:07:17]} Rxd1 {[%emt 0:01:59]} 32. Rxd1 {[%emt 0:00:01]} Qxa3 {[%emt 0:00:24]} 33. Bxg7 {[%emt 0:01:38]} Qxc3 {[%emt 0:00:28]} 34. Bxc3 {[%emt 0:00:01]} a5 {[%emt 0:00:30]} 35. Rd7 {[%emt 0:00:57]} b4 {[%emt 0:00:24]} 36. Bd4 {[%emt 0:00:29]} Kf7 {[%emt 0:00:37]} 37. Bc5 {[%emt 0:01:16]} b3 {[%emt 0:00:30]} 38. Rb7 {[%emt 0:00:30]} a4 {[%emt 0:00:28]} 39. Bd4 {[%emt 0:00:47]} Ned6 {[%emt 0:01:02]} 40. Rb4 {[%emt 0:00:30]} Ne8 {[%emt 0:00:30]} 41. Rb7 {[%emt 0:00:30]} 1/2-1/2

[Event "Rodostosah WGM 2019"]
[Site "Tekirdag"]
[Date "2019.02.10"]
[Round "1.7"]
[White "Kocyigit, Buse Naz"]
[Black "Brankovic, Dejan"]
[Result "0-1"]
[ECO "B34"]
[WhiteElo "2023"]
[BlackElo "2318"]
[Annotator "NA"]
[PlyCount "114"]
[EventDate "2019.02.08"]
[EventType "schev"]
[EventCountry "TUR"]
[SourceTitle "playchess.com"]
[Source "ChessBase"]
[SourceQuality "1"]
[TimeControl "5400+30"]

1. e4 {[%emt 0:00:30]} g6 {[%emt 0:01:30]} 2. d4 {[%emt 0:00:30]} Bg7 {[%emt 0:00:30]} 3. Nf3 {[%emt 0:00:30]} c5 {[%emt 0:00:30]} 4. Nc3 {[%emt 0:02:30]} cxd4 {[%emt 0:01:30]} 5. Nxd4 {[%emt 0:00:30]} Nc6 {[%emt 0:00:00]} 6. Be3 {[%emt 0:00:00]} d6 {[%emt 0:04:00]} 7. Be2 {[%emt 0:01:00]} Nf6 {[%emt 0:00:30]} 8. f3 {[%emt 0:00:00]} O-O {[%emt 0:01:30]} 9. Qd2 {[%emt 0:00:00]} d5 {[%emt 0:11:30]} 10. Nxc6 {[%emt 0:15:30]} bxc6 {[%emt 0:00:30]} 11. e5 {[%emt 0:03:30]} Nd7 {[%emt 0:01:30]} 12. f4 {[%emt 0:00:00]} Qa5 {[%emt 0:13:30]} 13. Ne4 {[%emt 0:11:00]} Qxd2+ {[%emt 0:05:30]} 14. Nxd2 {[%emt 0:00:30]} f6 {[%emt 0:01:30]} 15. exf6 {[%emt 0:03:30]} Bxf6 {[%emt 0:02:30]} 16. O-O-O {[%emt 0:02:30]} e5 {[%emt 0:00:30]} 17. fxe5 {[%emt 0:01:30]} Nxe5 {[%emt 0:00:30]} 18. h3 {[%emt 0:03:30]} Re8 {[%emt 0:00:30]} 19. Bf4 {[%emt 0:00:30]} Rb8 {[%emt 0:13:30]} 20. c3 {[%emt 0:10:30]} Rb7 {[%emt 0:05:30]} 21. Nf3 {[%emt 0:03:30]} Bf5 {[%emt 0:08:30]} 22. Nxe5 {[%emt 0:03:30]} Bxe5 {[%emt 0:00:30]} 23. Bxe5 {[%emt 0:00:30]} Rxe5 {[%emt 0:00:00]} 24. Bf3 {[%emt 0:00:00]} Kg7 {[%emt 0:08:18]} 25. Rhe1 {[%emt 0:02:00]} Kf6 {[%emt 0:04:28]} 26. h4 {[%emt 0:15:30]} h5 {[%emt 0:00:33]} 27. Rf1 {[%emt 0:01:10]} Rb6 {[%emt 0:05:18]} 28. Rd4 {[%emt 0:01:19]} Re3 {[%emt 0:02:55]} 29. Kd2 {[%emt 0:01:36]} Rxf3 {[%emt 0:01:51]} 30. gxf3 {[%emt 0:04:10]} Rxb2+ {[%emt 0:00:05]} 31. Ke3 {[%emt 0:00:00]} Rxa2 {[%emt 0:01:11]} 32. c4 {[%emt 0:02:30]} Ke5 {[%emt 0:01:00]} 33. f4+ {[%emt 0:00:09]} Kd6 {[%emt 0:00:30]} 34. cxd5 {[%emt 0:00:09]} cxd5 {[%emt 0:00:32]} 35. Rfd1 {[%emt 0:01:17]} Ra3+ {[%emt 0:01:44]} 36. Kf2 {[%emt 0:00:30]} Ra5 {[%emt 0:00:00]} 37. Rc1 {[%emt 0:01:53]} Ra2+ {[%emt 0:00:10]} 38. Kg3 {[%emt 0:00:19]} Be4 {[%emt 0:00:19]} 39. Rcd1 {[%emt 0:03:04]} Ke6 {[%emt 0:00:21]} 40. Rc1 {[%emt 0:02:37]} Rg2+ {[%emt 0:01:54]} 41. Kh3 {[%emt 0:00:11]} Rf2 {[%emt 0:00:00]} 42. Ra1 {[%emt 0:01:17]} Rf3+ {[%emt 0:00:00]} 43. Kh2 {[%emt 0:00:40]} Rxf4 {[%emt 0:00:00]} 44. Rxa7 {[%emt 0:00:44]} Rxh4+ {[%emt 0:00:00]} 45. Kg3 {[%emt 0:00:16]} Rg4+ {[%emt 0:00:00]} 46. Kh2 {[%emt 0:00:23]} Rg2+ {[%emt 0:01:12]} 47. Kh3 {[%emt 0:00:02]} Rg1 {[%emt 0:00:24]} 48. Rd2 {[%emt 0:01:26]} g5 {[%emt 0:00:23]} 49. Rb2 {[%emt 0:04:10]} Rh1+ {[%emt 0:01:06]} 50. Kg3 {[%emt 0:00:06]} h4+ {[%emt 0:01:14]} 51. Kg4 {[%emt 0:00:22]} Rg1+ {[%emt 0:00:05]} 52. Kh3 {[%emt 0:00:27]} Rg3+ {[%emt 0:01:02]} 53. Kh2 {[%emt 0:00:02]} Kf5 {[%emt 0:01:13]} 54. Ra4 {[%emt 0:02:28]} Kg4 {[%emt 0:00:15]} 55. Rd2 {[%emt 0:00:34]} Rh3+ {[%emt 0:00:33]} 56. Kg1 {[%emt 0:00:03]} Rh1+ {[%emt 0:00:45]} 57. Kf2 {[%emt 0:00:33]} Rh2+ 0-1

[Event "Rodostosah WGM 2019"]
[Site "Tekirdag"]
[Date "2019.02.10"]
[Round "1.8"]
[White "Duran, Esma Doga"]
[Black "Eric, Jovana"]
[Result "0-1"]
[ECO "A87"]
[WhiteElo "2005"]
[BlackElo "2222"]
[Annotator "NA"]
[PlyCount "102"]
[EventDate "2019.02.08"]
[EventType "schev"]
[EventCountry "TUR"]
[SourceTitle "playchess.com"]
[Source "ChessBase"]
[SourceQuality "1"]
[TimeControl "5400+30"]

1. d4 {[%emt 0:00:30]} f5 {[%emt 0:00:30]} 2. c4 {[%emt 0:00:30]} Nf6 {[%emt 0:00:00]} 3. g3 {[%emt 0:00:30]} g6 {[%emt 0:00:00]} 4. Bg2 {[%emt 0:00:00]} Bg7 {[%emt 0:00:30]} 5. Nf3 {[%emt 0:00:00]} d6 {[%emt 0:00:30]} 6. O-O {[%emt 0:00:30]} O-O {[%emt 0:00:30]} 7. b3 {[%emt 0:13:30]} c6 {[%emt 0:01:30]} 8. Bb2 {[%emt 0:00:30]} Qa5 {[%emt 0:02:30]} 9. Qc2 {[%emt 0:14:30]} Re8 {[%emt 0:04:30]} 10. Nbd2 {[%emt 0:06:30]} e5 {[%emt 0:02:30]} 11. dxe5 {[%emt 0:03:30]} dxe5 {[%emt 0:00:30]} 12. e4 {[%emt 0:00:30]} f4 {[%emt 0:05:30]} 13. a3 {[%emt 0:24:30]} Nh5 {[%emt 0:06:30]} 14. b4 {[%emt 0:00:00]} Qc7 {[%emt 0:00:30]} 15. c5 {[%emt 0:01:00]} b5 {[%emt 0:02:30]} 16. cxb6 {[%emt 0:00:30]} axb6 {[%emt 0:16:30]} 17. b5 {[%emt 0:07:30]} h6 {[%emt 0:09:30]} 18. Rfc1 {[%emt 0:05:37]} c5 {[%emt 0:14:30]} 19. a4 {[%emt 0:12:44]} Be6 {[%emt 0:03:30]} 20. Nc4 {[%emt 0:02:09]} Nd7 {[%emt 0:00:30]} 21. Rd1 {[%emt 0:02:42]} Kh7 {[%emt 0:01:30]} 22. Bf1 {[%emt 0:01:42]} Rf8 {[%emt 0:04:30]} 23. Ne1 {[%emt 0:00:38]} fxg3 {[%emt 0:00:30]} 24. hxg3 {[%emt 0:00:22]} Nhf6 {[%emt 0:01:30]} 25. Bg2 {[%emt 0:00:40]} Ng4 {[%emt 0:00:30]} 26. Nf3 {[%emt 0:00:40]} Rf7 {[%emt 0:03:06]} 27. Nd6 {[%emt 0:01:00]} Rf6 {[%emt 0:00:12]} 28. Nc4 {[%emt 0:00:26]} Raf8 {[%emt 0:00:42]} 29. Rd3 {[%emt 0:00:15]} g5 {[%emt 0:02:03]} 30. Rad1 {[%emt 0:00:20]} Rg6 {[%emt 0:04:07]} 31. R3d2 {[%emt 0:01:04]} Nb8 {[%emt 0:02:04]} 32. Nh2 {[%emt 0:00:26]} Nxf2 {[%emt 0:01:44]} 33. Rxf2 {[%emt 0:00:31]} Rxf2 {[%emt 0:00:06]} 34. Qxf2 {[%emt 0:00:49]} Bxc4 {[%emt 0:00:05]} 35. Bh3 {[%emt 0:00:00]} Rf6 {[%emt 0:01:18]} 36. Bf5+ {[%emt 0:00:00]} Kg8 {[%emt 0:01:20]} 37. Ng4 {[%emt 0:00:00]} Rd6 {[%emt 0:00:40]} 38. Qc2 {[%emt 0:00:40]} Bf7 {[%emt 0:00:49]} 39. Ne3 {[%emt 0:01:18]} c4 {[%emt 0:01:32]} 40. Ba3 {[%emt 0:00:40]} Rd4 {[%emt 0:00:20]} 41. Nd5 {[%emt 0:00:33]} Bxd5 {[%emt 0:03:13]} 42. exd5 {[%emt 0:00:01]} Nd7 {[%emt 0:04:20]} 43. Be6+ {[%emt 0:00:42]} Kh8 {[%emt 0:00:05]} 44. d6 {[%emt 0:00:00]} Rxd1+ {[%emt 0:01:13]} 45. Qxd1 {[%emt 0:00:15]} Qd8 {[%emt 0:00:30]} 46. Bxc4 {[%emt 0:00:30]} e4 {[%emt 0:00:30]} 47. Qd5 {[%emt 0:00:30]} e3 {[%emt 0:00:30]} 48. Qe6 {[%emt 0:00:30]} Ne5 {[%emt 0:00:30]} 49. Be2 {[%emt 0:00:30]} Qf8 {[%emt 0:00:30]} 50. Qa2 {[%emt 0:00:30]} Qf2+ {[%emt 0:00:30]} 51. Kh1 {[%emt 0:00:30]} Nf3 {[%emt 0:00:48]} 0-1

[Event "Rodostosah WGM 2019"]
[Site "Tekirdag"]
[Date "2019.02.10"]
[Round "1.9"]
[White "Anacoglu, Cisel"]
[Black "Dimitrijevic, Aleksandra"]
[Result "0-1"]
[ECO "B01"]
[WhiteElo "1962"]
[BlackElo "2175"]
[Annotator "NA"]
[PlyCount "86"]
[EventDate "2019.02.08"]
[EventType "schev"]
[EventCountry "TUR"]
[SourceTitle "playchess.com"]
[Source "ChessBase"]
[SourceQuality "1"]
[TimeControl "5400+30"]

1. e4 {[%emt 0:00:30]} d5 {[%emt 0:01:30]} 2. exd5 {[%emt 0:00:30]} Qxd5 {[%emt 0:00:30]} 3. Nc3 {[%emt 0:00:00]} Qd6 {[%emt 0:00:00]} 4. d4 {[%emt 0:00:00]} a6 {[%emt 0:00:00]} 5. Bd3 {[%emt 0:00:00]} Nc6 {[%emt 0:00:30]} 6. Nge2 {[%emt 0:00:00]} Nf6 {[%emt 0:00:30]} 7. Bf4 {[%emt 0:00:30]} Qd8 {[%emt 0:00:30]} 8. O-O {[%emt 0:01:30]} e6 {[%emt 0:00:30]} 9. a4 {[%emt 0:07:30]} b6 {[%emt 0:01:30]} 10. Bc4 {[%emt 0:05:30]} Nb4 {[%emt 0:08:30]} 11. Bb3 {[%emt 0:05:30]} Bb7 {[%emt 0:00:30]} 12. Qd2 {[%emt 0:03:30]} Qd7 {[%emt 0:05:30]} 13. Be5 {[%emt 0:07:30]} Be7 {[%emt 0:00:30]} 14. Rad1 {[%emt 0:08:30]} h5 {[%emt 0:16:30]} 15. Qf4 {[%emt 0:10:30]} g5 {[%emt 0:03:30]} 16. Qe3 {[%emt 0:02:30]} Ng4 {[%emt 0:00:30]} 17. Qg3 {[%emt 0:00:30]} Nf6 {[%emt 0:10:30]} 18. Qe3 {[%emt 0:18:30]} O-O-O {[%emt 0:10:30]} 19. f3 {[%emt 0:12:01]} Rhg8 {[%emt 0:02:30]} 20. Ne4 {[%emt 0:11:15]} Nfd5 {[%emt 0:03:30]} 21. Bxd5 {[%emt 0:02:51]} Nxd5 {[%emt 0:01:30]} 22. Qb3 {[%emt 0:01:13]} f6 {[%emt 0:00:30]} 23. c4 {[%emt 0:00:39]} fxe5 {[%emt 0:01:30]} 24. dxe5 {[%emt 0:00:28]} Qe8 {[%emt 0:00:30]} 25. cxd5 {[%emt 0:00:32]} exd5 {[%emt 0:00:30]} 26. Nf2 {[%emt 0:00:22]} Bc5 {[%emt 0:00:30]} 27. Qc3 {[%emt 0:00:17]} d4 {[%emt 0:03:30]} 28. Nxd4 {[%emt 0:01:07]} Qxe5 {[%emt 0:00:30]} 29. Nb3 {[%emt 0:00:09]} Bxf2+ {[%emt 0:01:30]} 30. Kxf2 {[%emt 0:00:02]} Qxh2 {[%emt 0:00:00]} 31. Rh1 {[%emt 0:00:51]} Qf4 {[%emt 0:00:00]} 32. Rxd8+ {[%emt 0:01:03]} Rxd8 {[%emt 0:00:00]} 33. Rxh5 {[%emt 0:00:00]} g4 {[%emt 0:00:00]} 34. Qe3 {[%emt 0:00:38]} g3+ {[%emt 0:01:30]} 35. Ke2 {[%emt 0:00:02]} Qc4+ {[%emt 0:00:00]} 36. Ke1 {[%emt 0:00:23]} Qc2 {[%emt 0:01:00]} 37. Nd2 {[%emt 0:01:04]} Qxb2 {[%emt 0:00:30]} 38. Rg5 {[%emt 0:00:29]} Qc1+ {[%emt 0:00:30]} 39. Ke2 {[%emt 0:00:03]} a5 {[%emt 0:00:00]} 40. Rb5 {[%emt 0:00:56]} Ba6 {[%emt 0:00:00]} 41. f4 {[%emt 0:00:28]} c6 {[%emt 0:02:30]} 42. Qe6+ {[%emt 0:00:09]} Kb8 {[%emt 0:00:00]} 43. Ne4 {[%emt 0:00:56]} Qd1+ {[%emt 0:00:00]} 0-1

[Event "Rodostosah WGM 2019"]
[Site "Tekirdag"]
[Date "2019.02.10"]
[Round "1.10"]
[White "Sade, Defne"]
[Black "Prohorov, Olexandr"]
[Result "1/2-1/2"]
[ECO "B03"]
[WhiteElo "1916"]
[BlackElo "2146"]
[Annotator "NA"]
[PlyCount "60"]
[EventDate "2019.02.08"]
[EventType "schev"]
[EventCountry "TUR"]
[SourceTitle "playchess.com"]
[Source "ChessBase"]
[SourceQuality "1"]
[TimeControl "5400+30"]

1. e4 {[%emt 0:00:30]} Nf6 {[%emt 0:00:30]} 2. e5 {[%emt 0:00:30]} Nd5 {[%emt 0:00:30]} 3. c4 {[%emt 0:00:30]} Nb6 {[%emt 0:00:30]} 4. d4 {[%emt 0:00:30]} d6 {[%emt 0:00:00]} 5. exd6 {[%emt 0:00:00]} exd6 {[%emt 0:00:00]} 6. Nc3 {[%emt 0:00:00]} Be7 {[%emt 0:00:30]} 7. Bd3 {[%emt 0:00:30]} Nc6 {[%emt 0:04:30]} 8. Nge2 {[%emt 0:00:00]} O-O {[%emt 0:00:30]} 9. O-O {[%emt 0:01:00]} Bf6 {[%emt 0:03:30]} 10. Be3 {[%emt 0:06:30]} Nb4 {[%emt 0:08:30]} 11. Rc1 {[%emt 0:02:30]} Bg4 {[%emt 0:03:30]} 12. b3 {[%emt 0:09:30]} Nxd3 {[%emt 0:02:30]} 13. Qxd3 {[%emt 0:00:30]} Re8 {[%emt 0:00:30]} 14. Ng3 {[%emt 0:07:30]} d5 {[%emt 0:13:30]} 15. c5 {[%emt 0:02:30]} Nc8 {[%emt 0:00:00]} 16. h3 {[%emt 0:00:30]} Be6 {[%emt 0:00:00]} 17. Nce2 {[%emt 0:06:30]} Bh4 {[%emt 0:09:30]} 18. Nf5 {[%emt 0:05:30]} Bxf5 {[%emt 0:01:30]} 19. Qxf5 {[%emt 0:00:30]} g6 {[%emt 0:00:30]} 20. Qf3 {[%emt 0:00:30]} Bg5 {[%emt 0:00:30]} 21. Nc3 {[%emt 0:00:30]} c6 {[%emt 0:00:30]} 22. Rce1 {[%emt 0:00:30]} Rf8 {[%emt 0:06:30]} 23. Bxg5 {[%emt 0:23:30]} Qxg5 {[%emt 0:00:30]} 24. Re5 {[%emt 0:00:00]} Qd8 {[%emt 0:04:30]} 25. Rfe1 {[%emt 0:00:00]} b6 {[%emt 0:00:30]} 26. b4 {[%emt 0:02:30]} bxc5 {[%emt 0:05:30]} 27. dxc5 {[%emt 0:10:30]} Rb8 {[%emt 0:02:30]} 28. b5 {[%emt 0:06:03]} d4 {[%emt 0:02:30]} 29. Ne4 {[%emt 0:03:22]} f5 {[%emt 0:00:30]} 30. Ng3 {[%emt 0:10:24]} cxb5 {[%emt 0:04:30]} 1/2-1/2

[Event "Rodostosah WGM 2019"]
[Site "Tekirdag"]
[Date "2019.02.11"]
[Round "3.6"]
[White "Caglar, Sila"]
[Black "Eric, Jovana"]
[Result "1/2-1/2"]
[ECO "C00"]
[WhiteElo "2062"]
[BlackElo "2222"]
[Annotator "NA"]
[PlyCount "115"]
[EventDate "2019.02.08"]
[EventType "schev"]
[EventCountry "TUR"]
[SourceTitle "playchess.com"]
[Source "ChessBase"]
[SourceQuality "1"]
[TimeControl "5400+30"]

1. e4 e6 2. d3 d5 3. Nd2 Nf6 4. Ngf3 Nc6 5. e5 Nd7 6. d4 f6 7. Bb5 {C00: French: Unusual White 2nd moves} (7. exf6 Qxf6 8. Nb3 Bd6 9. Bg5 Qf7 10. Bh4 e5 11. dxe5 Ndxe5 12. Be2 O-O 13. Ng5 Qf4 14. Qxd5+ Kh8 15. Qe4 Qxe4 16. Nxe4 {0-1 (29) Gundavaa,B (2516)-Ponkratov,P (2605) Khanty-Mansiysk 2013}) 7... a6 8. Bxc6 $1 bxc6 9. exf6 Qxf6 10. Nf1 $146 ({Predecessor:} 10. O-O $11 {keeps the balance.} Bd6 11. c4 O-O 12. c5 Bf4 13. Nb3 e5 14. Bxf4 Qxf4 15. Nxe5 Nxe5 16. dxe5 Qxe5 17. Qd2 Qf6 18. Nd4 Bd7 19. Rfe1 Rfe8 20. Rad1 {½-½ (20) Garcia Martinez,S (2371)-Riazantsev,A (2485) Ubeda 2001}) 10... Bd6 11. Bg5 Qg6 12. Qe2 O-O 13. h4 h6 14. h5 Qf7 15. Bd2 {[#]} e5 $1 16. dxe5 {[#]} Nxe5 $1 17. O-O-O Nxf3 18. gxf3 Qxf3 19. Qxf3 Rxf3 20. Rg1 {[#]} Kh7 $1 21. Bc3 Rf7 22. Ne3 Bf4 23. Rg6 Bd7 24. Rdg1 {[#]} Rg8 $1 25. Kd1 Bg5 26. Ng4 Be8 27. Re6 Rf5 28. Rh1 Rf4 29. Ne5 Rxf2 30. Nd3 Rf5 31. Be5 Bd8 32. Kd2 Bxh5 33. Rxc6 Bf3 34. Rf1 Bg5+ 35. Kc3 Rc8 36. Rxa6 c5 37. Ra7 d4+ 38. Kc4 Bf6 39. Bxf6 Rxf6 40. Rg1 Rg8 41. Nxc5 h5 42. Rd7 $2 ({White should play} 42. Re7 $15) 42... h4 43. Rxd4 h3 44. Rd2 Rf4+ 45. Kc3 Bg2 46. Rgxg2 hxg2 47. Rxg2 g5 48. a4 g4 49. a5 $11 g3 50. a6 Rf3+ 51. Nd3 Ra8 52. Kd4 Rxa6 53. Ke4 Raf6 54. b4 Kh6 55. b5 R3f5 56. c4 Rg5 57. c5 Re6+ 58. Kf4 1/2-1/2

[Event "Rodostosah WGM 2019"]
[Site "Tekirdag"]
[Date "2019.02.11"]
[Round "3.7"]
[White "Kocyigit, Buse Naz"]
[Black "Dimitrijevic, Aleksandra"]
[Result "1/2-1/2"]
[ECO "A56"]
[WhiteElo "2023"]
[BlackElo "2175"]
[Annotator "NA"]
[PlyCount "71"]
[EventDate "2019.02.08"]
[EventType "schev"]
[EventCountry "TUR"]
[SourceTitle "playchess.com"]
[Source "ChessBase"]
[SourceQuality "1"]
[TimeControl "5400+30"]

1. d4 c5 2. d5 d6 3. c4 e5 4. Nc3 Be7 5. e4 Nf6 6. Bd3 Nbd7 7. Nge2 Nf8 8. h3 {LiveBook: 3 Games A56: Czech Benoni} (8. Ng3 Ng6 9. Nf5 O-O 10. Qf3 Re8 11. O-O h6 12. g3 Nh7 13. h4 Bf6 14. Nb5 Bxf5 15. exf5 e4 16. Bxe4 {1-0 (35) Wagner,D (2572)-Czebe,A (2474) Zalakaros 2015}) 8... h5 9. Ng3 g6 10. Be3 h4 11. Nge2 Nh5 12. Qd2 Nh7 (12... g5 $11) 13. O-O-O $146 ({Predecessor:} 13. a3 Bg5 14. b4 b6 15. Bxg5 Nxg5 {0-1 (59) Kojic,T (2289)-Trkulja,G (2371) Zenica 2011}) 13... a6 14. f4 exf4 15. Nxf4 Ng3 16. Rhe1 O-O 17. Nfe2 $16 Nxe2+ 18. Rxe2 Bf6 19. Bf4 Re8 20. Rde1 Re5 21. Rf1 Bd7 22. Ref2 Be8 23. Be3 Bg7 24. Bf4 b5 25. Bxe5 Bxe5 26. cxb5 axb5 27. Bxb5 Bxb5 28. Nxb5 Rxa2 29. Rxf7 Nf6 30. Qh6 Kxf7 31. Qh7+ Ke8 32. Rxf6 Bxb2+ 33. Kd1 Qxf6 34. Nc7+ Kf8 35. Ne6+ Ke8 36. Nc7+ 1/2-1/2

[Event "Rodostosah WGM 2019"]
[Site "Tekirdag"]
[Date "2019.02.11"]
[Round "3.8"]
[White "Duran, Esma Doga"]
[Black "Prohorov, Olexandr"]
[Result "1/2-1/2"]
[ECO "A87"]
[WhiteElo "2005"]
[BlackElo "2146"]
[Annotator "NA"]
[PlyCount "126"]
[EventDate "2019.02.08"]
[EventType "schev"]
[EventCountry "TUR"]
[SourceTitle "playchess.com"]
[Source "ChessBase"]
[SourceQuality "1"]
[TimeControl "5400+30"]

1. d4 g6 2. c4 Bg7 3. Nf3 c5 4. d5 f5 5. g3 d6 6. Bg2 Nf6 7. O-O O-O 8. Nc3 Na6 9. e4 fxe4 {A87: Dutch Defence: Leningrad System: 5 Nf3} 10. Ng5 Bg4 11. Qb3 {LiveBook: 3 Games} Nc7 $146 ({Predecessor:} 11... Rb8 12. Re1 Qd7 {½-½ (12) Del Rio de Angelis,S (2506)-Bartel,M (2609) Evora 2007}) 12. Ngxe4 Rb8 13. a4 b6 14. Bd2 a6 15. Rfe1 Bd7 16. Bf1 Bf5 17. Nxf6+ Bxf6 $11 18. Ne4 Bd4 19. Bc3 e5 20. dxe6 Nxe6 21. Bxd4 Nxd4 22. Qc3 Bxe4 23. Rxe4 Qf6 24. f4 a5 25. Rae1 Rb7 26. Bg2 Rbf7 27. Rxd4 cxd4 28. Qd3 g5 29. Bd5 Kg7 30. Bxf7 Rxf7 31. Re4 gxf4 32. Rxf4 Qe5 33. Re4 Qf6 34. Qxd4 Qxd4+ 35. Rxd4 Rd7 36. Kf2 Kf6 37. Rd5 Ke6 38. Ke3 Re7 39. Rb5 Kd7+ 40. Kf3 Kc6 41. Rh5 Rf7+ 42. Ke4 Rf2 43. Rxh7 Rxb2 44. g4 Rb4 45. g5 Rxc4+ 46. Kf5 Rxa4 47. g6 Ra2 48. g7 Rg2 49. Kf6 b5 50. Rh8 b4 51. g8=Q Rxg8 52. Rxg8 a4 53. h4 b3 54. Rb8 Kc5 55. h5 Kc4 56. h6 a3 57. h7 a2 58. h8=Q a1=Q+ 59. Ke6 Qxh8 60. Rxh8 b2 61. Rb8 Kc3 62. Kxd6 Kc2 63. Rxb2+ Kxb2 1/2-1/2

[Event "Rodostosah WGM 2019"]
[Site "Tekirdag"]
[Date "2019.02.11"]
[Round "3.9"]
[White "Anacoglu, Cisel"]
[Black "Shkuran, Danylo"]
[Result "0-1"]
[ECO "B41"]
[WhiteElo "1962"]
[BlackElo "2368"]
[Annotator "NA"]
[PlyCount "58"]
[EventDate "2019.02.08"]
[EventType "schev"]
[EventCountry "TUR"]
[SourceTitle "playchess.com"]
[Source "ChessBase"]
[SourceQuality "1"]
[TimeControl "5400+30"]

1. e4 c5 2. Nf3 e6 3. d4 cxd4 4. Nxd4 a6 5. c4 Nf6 6. Nc3 Qc7 7. Be2 Nc6 {LiveBook: 92 Games} 8. O-O Bd6 {B41: Sicilian: Kan Variation: 5 c4} 9. Kh1 Nxd4 10. Qxd4 O-O 11. Be3 Be5 12. Qd3 Bxc3 $146 ({Predecessor:} 12... d6 13. Rac1 Bd7 14. f4 Bxc3 15. Rxc3 Bc6 16. Bf3 {0-1 (33) Kotrotsos,V (2356)-Banikas,H (2548) Ermioni Argolidas 2005}) 13. bxc3 b5 14. cxb5 (14. c5 $16) 14... axb5 15. Bf3 Bb7 16. Bg5 Bc6 17. Bxf6 gxf6 18. Rfd1 Ra3 19. Qd4 Qe5 $19 20. c4 Qxd4 21. Rxd4 e5 22. Rd2 bxc4 23. Rc2 Rfa8 24. Kg1 f5 25. exf5 e4 26. Be2 d5 27. g4 c3 28. f3 d4 29. Rd1 Ba4 0-1

[Event "Rodostosah WGM 2019"]
[Site "Tekirdag"]
[Date "2019.02.11"]
[Round "3.10"]
[White "Sade, Defne"]
[Black "Brankovic, Dejan"]
[Result "1/2-1/2"]
[ECO "B45"]
[WhiteElo "1916"]
[BlackElo "2318"]
[Annotator "NA"]
[PlyCount "77"]
[EventDate "2019.02.08"]
[EventType "schev"]
[EventCountry "TUR"]
[SourceTitle "playchess.com"]
[Source "ChessBase"]
[SourceQuality "1"]
[TimeControl "5400+30"]

1. e4 c5 2. Nf3 e6 3. d4 cxd4 4. Nxd4 Nf6 {LiveBook: 12662 Games} 5. Nc3 Nc6 6. Be2 Bb4 7. O-O O-O 8. Nxc6 bxc6 9. e5 {B45: Sicilian Four Knights} Nd5 10. Ne4 Qc7 (10... f5 11. Nd6 Bxd6 12. exd6 Qb6 13. c4 Nf6 14. b3 c5 15. Bf4 Bb7 16. f3 a5 {½-½ (32) Kobalia,M (2648)-Petrov,M (2535) Tromsoe 2010}) 11. f4 f5 $146 ({Predecessor:} 11... f6 12. c4 Qb6+ 13. Kh1 Ne3 14. Bxe3 Qxe3 15. Bd3 fxe5 16. Rf3 Qd4 {0-1 (44) Schneider,B (2395)-Wilde,P (2295) Eislingen 1994}) 12. Ng5 Bc5+ 13. Kh1 h6 14. Nf3 Ne3 15. Bxe3 $1 Bxe3 16. Nd2 g5 17. fxg5 Bxg5 18. Nc4 Rb8 19. Bd3 $11 ({Better is} 19. Nd6 $16) 19... c5 20. Qh5 d5 21. exd6 Qf7 22. Qe2 Bf6 23. Rf3 Bb7 24. Rg3+ Kh8 25. Re1 Bd5 26. b3 Rg8 27. Ne5 Qh7 28. c4 Ba8 29. Qh5 Rxg3 30. hxg3 Kg8 31. Ng4 Bg5 32. Rxe6 Qb7 33. Qg6+ Kh8 34. Re8+ Rxe8 35. Qxe8+ Kg7 36. Qe5+ Kg8 37. Qe8+ Kg7 38. Qe5+ Kg8 39. Be4 1/2-1/2